fUSD/lending_fUSD_20260622
["ID","MTS","AMOUNT","RATE_DAILY","PERIOD"]
[425973085,1782061883000,-500.0,0.00027671,2]
[425973084,1782061883000,-500.0,0.00027671,2]
[425973091,1782061883000,-514.45562831,0.00027671,2]
[425973088,1782061883000,-500.0,0.00027671,2]
[425973089,1782061883000,-500.0,0.00027671,2]
[425973086,1782061883000,-500.0,0.00027671,2]
[425973090,1782061883000,-500.0,0.00027671,2]
[425973072,1782061883000,-556.75656938,0.00027671,2]
[425973092,1782061883000,-500.0,0.00027671,2]
[425973098,1782061883000,-500.0,0.00027671,2]
[425973097,1782061883000,-500.0,0.00027671,2]
[425973100,1782061883000,-500.0,0.00027671,2]
[425973093,1782061883000,-500.0,0.00027671,2]
[425973087,1782061883000,-500.0,0.00027671,2]
[425973070,1782061883000,-500.0,0.00027671,2]
[425973068,1782061883000,-500.0,0.00027671,2]
[425973077,1782061883000,-500.0,0.00027671,2]
[425973095,1782061883000,-500.0,0.00027671,2]
[425973052,1782061883000,-500.0,0.00027671,2]
[425973054,1782061883000,-500.0,0.00027671,2]
[425973055,1782061883000,-1118.18,0.00027671,2]
[425973061,1782061883000,-500.0,0.00027671,2]
[425973051,1782061883000,-500.0,0.00027671,2]
[425973053,1782061883000,-500.0,0.00027671,2]
[425973057,1782061883000,-500.0,0.00027671,2]
[425973056,1782061883000,-500.0,0.00027671,2]
[425973059,1782061883000,-500.0,0.00027671,2]
[425973060,1782061883000,-500.0,0.00027671,2]
[425973063,1782061883000,-500.0,0.00027671,2]
[425973064,1782061883000,-1056.03,0.00027671,2]
[425973062,1782061883000,-500.0,0.00027671,2]
[425973065,1782061883000,-500.0,0.00027671,2]
[425973067,1782061883000,-500.0,0.00027671,2]
[425973066,1782061883000,-500.0,0.00027671,2]
[425973075,1782061883000,-500.0,0.00027671,2]
[425973078,1782061883000,-500.0,0.00027671,2]
[425973073,1782061883000,-1016.84,0.00027671,2]
[425973071,1782061883000,-1000.0,0.00027671,2]
[425973074,1782061883000,-500.0,0.00027671,2]
[425973058,1782061883000,-500.0,0.00027671,2]
[425973099,1782061883000,-500.0,0.00027671,2]
[425973101,1782061883000,-500.0,0.00027671,2]
[425973125,1782061883000,-3926.18,0.00027671,2]
[425973128,1782061883000,-500.0,0.00027671,2]
[425973127,1782061883000,-523.9782396,0.00027671,2]
[425973126,1782061883000,-500.0,0.00027671,2]
[425973129,1782061883000,-500.0,0.00027671,2]
[425973131,1782061883000,-500.0,0.00027671,2]
[425973130,1782061883000,-2712.86,0.00027671,2]
[425973132,1782061883000,-873.86,0.00027671,2]
[425973133,1782061883000,-500.0,0.00027671,2]
[425973124,1782061883000,-500.0,0.00027671,2]
[425973135,1782061883000,-500.0,0.00027671,2]
[425973138,1782061883000,-500.0,0.00027671,2]
[425973139,1782061883000,-500.0,0.00027671,2]
[425973142,1782061883000,-5923.33,0.00027671,2]
[425973144,1782061883000,-500.0,0.00027671,2]
[425973140,1782061883000,-212.04879848,0.00027671,2]
[425973143,1782061883000,-741.05,0.00027671,2]
[425973145,1782061883000,-500.0,0.00027671,2]
[425973141,1782061883000,-4889.99,0.00027671,2]
[425973096,1782061883000,-349.70458824,0.00027671,2]
[425973137,1782061883000,-500.0,0.00027671,2]
[425973134,1782061883000,-500.0,0.00027671,2]
[425973136,1782061883000,-500.0,0.00027671,2]
[425973120,1782061883000,-500.0,0.00027671,2]
[425973117,1782061883000,-500.0,0.00027671,2]
[425973094,1782061883000,-500.0,0.00027671,2]
[425973103,1782061883000,-500.0,0.00027671,2]
[425973104,1782061883000,-500.0,0.00027671,2]
[425973102,1782061883000,-572.65,0.00027671,2]
[425973105,1782061883000,-1130.66,0.00027671,2]
[425973110,1782061883000,-500.0,0.00027671,2]
[425973109,1782061883000,-500.0,0.00027671,2]
[425973106,1782061883000,-500.0,0.00027671,2]
[425973111,1782061883000,-500.0,0.00027671,2]
[425973108,1782061883000,-634.01695776,0.00027671,2]
[425973119,1782061883000,-500.0,0.00027671,2]
[425973116,1782061883000,-500.0,0.00027671,2]
[425973113,1782061883000,-500.0,0.00027671,2]
[425973112,1782061883000,-500.0,0.00027671,2]
[425973123,1782061883000,-500.0,0.00027671,2]
[425973121,1782061883000,-500.0,0.00027671,2]
[425973122,1782061883000,-500.0,0.00027671,2]
[425973118,1782061883000,-500.0,0.00027671,2]
[425973114,1782061883000,-6753.8,0.00027671,2]
[425973107,1782061883000,-500.0,0.00027671,2]
[425973115,1782061883000,-500.0,0.00027671,2]
[425973170,1782061884000,-6410.69,0.00027671,2]
[425973190,1782061884000,-500.0,0.00027671,2]
[425973184,1782061884000,-500.0,0.00027671,2]
[425973183,1782061884000,-2146.6,0.00027671,2]
[425973181,1782061884000,-4173.31,0.00027671,2]
[425973171,1782061884000,-12052.2,0.00027671,2]
[425973174,1782061884000,-500.0,0.00027671,2]
[425973175,1782061884000,-500.0,0.00027671,2]
[425973176,1782061884000,-500.0,0.00027671,2]
[425973186,1782061884000,-500.0,0.00027671,2]
[425973179,1782061884000,-500.0,0.00027671,2]
[425973185,1782061884000,-8253.7,0.00027671,2]
[425973198,1782061884000,-547.74,0.00027671,2]
[425973182,1782061884000,-500.0,0.00027671,2]
[425973187,1782061884000,-822.03,0.00027671,2]
[425973188,1782061884000,-500.0,0.00027671,2]
[425973189,1782061884000,-500.0,0.00027671,2]
[425973192,1782061884000,-500.0,0.00027671,2]
[425973194,1782061884000,-500.0,0.00027671,2]
[425973204,1782061884000,-500.0,0.00027671,2]
[425973193,1782061884000,-500.0,0.00027671,2]
[425973195,1782061884000,-500.0,0.00027671,2]
[425973196,1782061884000,-500.0,0.00027671,2]
[425973203,1782061884000,-500.0,0.00027671,2]
[425973178,1782061884000,-500.0,0.00027671,2]
[425973191,1782061884000,-1547.68,0.00027671,2]
[425973172,1782061884000,-605.17,0.00027671,2]
[425973153,1782061884000,-541.15,0.00027671,2]
[425973180,1782061884000,-500.0,0.00027671,2]
[425973147,1782061884000,-513.47549398,0.00027671,2]
[425973146,1782061884000,-500.0,0.00027671,2]
[425973149,1782061884000,-500.0,0.00027671,2]
[425973150,1782061884000,-500.0,0.00027671,2]
[425973201,1782061884000,-500.0,0.00027671,2]
[425973151,1782061884000,-732.43,0.00027671,2]
[425973148,1782061884000,-500.0,0.00027671,2]
[425973154,1782061884000,-500.0,0.00027671,2]
[425973156,1782061884000,-500.0,0.00027671,2]
[425973155,1782061884000,-500.0,0.00027671,2]
[425973152,1782061884000,-500.0,0.00027671,2]
[425973157,1782061884000,-1048.26,0.00027671,2]
[425973159,1782061884000,-500.0,0.00027671,2]
[425973160,1782061884000,-500.0,0.00027671,2]
[425973167,1782061884000,-544.48399261,0.00027671,2]
[425973168,1782061884000,-4756.56,0.00027671,2]
[425973161,1782061884000,-500.0,0.00027671,2]
[425973164,1782061884000,-256.16189787,0.00027671,2]
[425973166,1782061884000,-500.0,0.00027671,2]
[425973158,1782061884000,-500.0,0.00027671,2]
[425973162,1782061884000,-500.0,0.00027671,2]
[425973163,1782061884000,-500.0,0.00027671,2]
[425973165,1782061884000,-500.0,0.00027671,2]
[425973173,1782061884000,-1000.0,0.00027671,2]
[425973177,1782061884000,-500.0,0.00027671,2]
[425973169,1782061884000,-500.0,0.00027671,2]
[425973202,1782061884000,-9055.22,0.00027671,2]
[425973197,1782061884000,-500.0,0.00027671,2]
[425973199,1782061884000,-500.0,0.00027671,2]
[425973232,1782061884000,-1094.84,0.00027671,2]
[425973236,1782061884000,-500.0,0.00027671,2]
[425973235,1782061884000,-500.0,0.00027671,2]
[425973234,1782061884000,-503.88010011,0.00027671,2]
[425973250,1782061884000,-6582.69,0.00027671,2]
[425973240,1782061884000,-3218.44,0.00027671,2]
[425973239,1782061884000,-500.0,0.00027671,2]
[425973243,1782061884000,-500.0,0.00027671,2]
[425973244,1782061884000,-946.16,0.00027671,2]
[425973241,1782061884000,-9092.8,0.00027671,2]
[425973248,1782061884000,-8949.23,0.00027671,2]
[425973249,1782061884000,-500.0,0.00027671,2]
[425973233,1782061884000,-500.0,0.00027671,2]
[425973245,1782061884000,-544.71,0.00027671,2]
[425973242,1782061884000,-3370.08,0.00027671,2]
[425973246,1782061884000,-500.0,0.00027671,2]
[425973251,1782061884000,-500.0,0.00027671,2]
[425973253,1782061884000,-500.0,0.00027671,2]
[425973254,1782061884000,-4428.27,0.00027671,2]
[425973252,1782061884000,-826.36,0.00027671,2]
[425973258,1782061884000,-500.0,0.00027671,2]
[425973260,1782061884000,-500.0,0.00027671,2]
[425973255,1782061884000,-500.0,0.00027671,2]
[425973259,1782061884000,-500.0,0.00027671,2]
[425973200,1782061884000,-300.80559119,0.00027671,2]
[425973257,1782061884000,-6489.37,0.00027671,2]
[425973247,1782061884000,-500.0,0.00027671,2]
[425973229,1782061884000,-1087.92,0.00027671,2]
[425973256,1782061884000,-3434.42,0.00027671,2]
[425973238,1782061884000,-8104.14,0.00027671,2]
[425973237,1782061884000,-500.0,0.00027671,2]
[425973205,1782061884000,-4867.06,0.00027671,2]
[425973209,1782061884000,-500.0,0.00027671,2]
[425973207,1782061884000,-500.0,0.00027671,2]
[425973208,1782061884000,-500.0,0.00027671,2]
[425973211,1782061884000,-4107.48,0.00027671,2]
[425973210,1782061884000,-500.0,0.00027671,2]
[425973215,1782061884000,-500.0,0.00027671,2]
[425973213,1782061884000,-839.88,0.00027671,2]
[425973212,1782061884000,-500.0,0.00027671,2]
[425973214,1782061884000,-500.0,0.00027671,2]
[425973226,1782061884000,-532.94558662,0.00027671,2]
[425973216,1782061884000,-153.29381893,0.00027671,2]
[425973206,1782061884000,-500.0,0.00027671,2]
[425973218,1782061884000,-500.0,0.00027671,2]
[425973230,1782061884000,-555.38413167,0.00027671,2]
[425973227,1782061884000,-500.0,0.00027671,2]
[425973231,1782061884000,-500.0,0.00027671,2]
[425973228,1782061884000,-4501.1,0.00027671,2]
[425973225,1782061884000,-500.0,0.00027671,2]
[425973223,1782061884000,-9631.81,0.00027671,2]
[425973221,1782061884000,-500.0,0.00027671,2]
[425973222,1782061884000,-500.0,0.00027671,2]
[425973220,1782061884000,-562.70274818,0.00027671,2]
[425973219,1782061884000,-913.85,0.00027671,2]
[425973217,1782061884000,-296.45747801,0.00027671,2]
[425973224,1782061884000,-500.0,0.00027671,2]
[425973296,1782061885000,-650.16,0.00027671,2]
[425973304,1782061885000,-4131.31,0.00027671,2]
[425973297,1782061885000,-500.0,0.00027671,2]
[425973295,1782061885000,-631.38,0.00027671,2]
[425973287,1782061885000,-10410.98,0.00027671,2]
[425973293,1782061885000,-537.55408126,0.00027671,2]
[425973292,1782061885000,-500.0,0.00027671,2]
[425973291,1782061885000,-10460.79,0.00027671,2]
[425973290,1782061885000,-500.0,0.00027671,2]
[425973294,1782061885000,-742.97,0.00027671,2]
[425973302,1782061885000,-300.0,0.00027671,2]
[425973305,1782061885000,-540.02201951,0.00027671,2]
[425973301,1782061885000,-6462.79,0.00027671,2]
[425973310,1782061885000,-629.28,0.00027671,2]
[425973303,1782061885000,-500.0,0.00027671,2]
[425973309,1782061885000,-538.42,0.00027671,2]
[425973308,1782061885000,-500.0,0.00027671,2]
[425973307,1782061885000,-6683.71,0.00027671,2]
[425973306,1782061885000,-3874.09,0.00027671,2]
[425973322,1782061885000,-500.0,0.00027671,2]
[425973311,1782061885000,-500.0,0.00027671,2]
[425973314,1782061885000,-500.0,0.00027671,2]
[425973289,1782061885000,-981.05,0.00027671,2]
[425973313,1782061885000,-500.0,0.00027671,2]
[425973300,1782061885000,-500.0,0.00027671,2]
[425973299,1782061885000,-500.0,0.00027671,2]
[425973276,1782061885000,-500.0,0.00027671,2]
[425973288,1782061885000,-500.0,0.00027671,2]
[425973315,1782061885000,-523.09747319,0.00027671,2]
[425973261,1782061885000,-6468.05,0.00027671,2]
[425973262,1782061885000,-500.0,0.00027671,2]
[425973264,1782061885000,-500.0,0.00027671,2]
[425973274,1782061885000,-2478.59,0.00027671,2]
[425973270,1782061885000,-500.0,0.00027671,2]
[425973268,1782061885000,-500.0,0.00027671,2]
[425973266,1782061885000,-8108.8,0.00027671,2]
[425973263,1782061885000,-533.50882742,0.00027671,2]
[425973272,1782061885000,-763.6,0.00027671,2]
[425973273,1782061885000,-500.0,0.00027671,2]
[425973265,1782061885000,-486.50312307,0.00027671,2]
[425973298,1782061885000,-15060.49,0.00027671,2]
[425973267,1782061885000,-500.0,0.00027671,2]
[425973271,1782061885000,-500.0,0.00027671,2]
[425973285,1782061885000,-3418.67,0.00027671,2]
[425973283,1782061885000,-500.0,0.00027671,2]
[425973278,1782061885000,-514.73,0.00027671,2]
[425973275,1782061885000,-500.0,0.00027671,2]
[425973277,1782061885000,-500.0,0.00027671,2]
[425973286,1782061885000,-500.0,0.00027671,2]
[425973279,1782061885000,-500.0,0.00027671,2]
[425973284,1782061885000,-8432.29,0.00027671,2]
[425973280,1782061885000,-500.0,0.00027671,2]
[425973281,1782061885000,-500.0,0.00027671,2]
[425973282,1782061885000,-500.0,0.00027671,2]
[425973269,1782061885000,-500.0,0.00027671,2]
[425973316,1782061885000,-500.0,0.00027671,2]
[425973312,1782061885000,-500.0,0.00027671,2]
[425973319,1782061885000,-500.0,0.00027671,2]
[425973355,1782061885000,-524.5665104,0.00027671,2]
[425973351,1782061885000,-4815.29,0.00027671,2]
[425973352,1782061885000,-500.0,0.00027671,2]
[425973350,1782061885000,-500.0,0.00027671,2]
[425973349,1782061885000,-500.0,0.00027671,2]
[425973356,1782061885000,-500.0,0.00027671,2]
[425973347,1782061885000,-500.0,0.00027671,2]
[425973358,1782061885000,-500.0,0.00027671,2]
[425973357,1782061885000,-1825.32,0.00027671,2]
[425973360,1782061885000,-3531.97,0.00027671,2]
[425973359,1782061885000,-500.0,0.00027671,2]
[425973365,1782061885000,-8318.01,0.00027671,2]
[425973363,1782061885000,-500.0,0.00027671,2]
[425973364,1782061885000,-529.37,0.00027671,2]
[425973361,1782061885000,-500.0,0.00027671,2]
[425973362,1782061885000,-500.0,0.00027671,2]
[425973366,1782061885000,-500.0,0.00027671,2]
[425973368,1782061885000,-500.0,0.00027671,2]
[425973369,1782061885000,-501.82455083,0.00027671,2]
[425973367,1782061885000,-500.0,0.00027671,2]
[425973370,1782061885000,-363.90048019,0.00027671,2]
[425973371,1782061885000,-397.15169818,0.00027671,2]
[425973372,1782061885000,-500.0,0.00027671,2]
[425973374,1782061885000,-500.0,0.00027671,2]
[425973373,1782061885000,-4605.85,0.00027671,2]
[425973348,1782061885000,-616.3,0.00027671,2]
[425973353,1782061885000,-8230.87,0.00027671,2]
[425973375,1782061885000,-6111.21,0.00027671,2]
[425973354,1782061885000,-500.0,0.00027671,2]
[425973346,1782061885000,-500.0,0.00027671,2]
[425973320,1782061885000,-853.42,0.00027671,2]
[425973318,1782061885000,-785.35,0.00027671,2]
[425973317,1782061885000,-500.0,0.00027671,2]
[425973323,1782061885000,-500.0,0.00027671,2]
[425973325,1782061885000,-670.57,0.00027671,2]
[425973324,1782061885000,-500.0,0.00027671,2]
[425973326,1782061885000,-500.0,0.00027671,2]
[425973332,1782061885000,-1483.1,0.00027671,2]
[425973327,1782061885000,-500.0,0.00027671,2]
[425973329,1782061885000,-500.0,0.00027671,2]
[425973328,1782061885000,-500.0,0.00027671,2]
[425973331,1782061885000,-500.0,0.00027671,2]
[425973321,1782061885000,-500.0,0.00027671,2]
[425973333,1782061885000,-501.49,0.00027671,2]
[425973345,1782061885000,-1823.11,0.00027671,2]
[425973341,1782061885000,-500.0,0.00027671,2]
[425973340,1782061885000,-500.0,0.00027671,2]
[425973338,1782061885000,-275.83459232,0.00027671,2]
[425973330,1782061885000,-2013.27,0.00027671,2]
[425973343,1782061885000,-500.0,0.00027671,2]
[425973342,1782061885000,-500.0,0.00027671,2]
[425973337,1782061885000,-500.0,0.00027671,2]
[425973334,1782061885000,-500.0,0.00027671,2]
[425973336,1782061885000,-4451.14,0.00027671,2]
[425973344,1782061885000,-2000.0,0.00027671,2]
[425973335,1782061885000,-709.73,0.00027671,2]
[425973339,1782061885000,-500.0,0.00027671,2]
[425973416,1782061886000,-200.0,0.00027734,2]
[425973414,1782061886000,-200.0,0.00027734,2]
[425973410,1782061886000,-200.0,0.00027734,2]
[425973409,1782061886000,-350.0,0.00027708,2]
[425973405,1782061886000,-500.0,0.00027671,2]
[425973412,1782061886000,-200.0,0.00027734,2]
[425973408,1782061886000,-1155.13,0.00027679,10]
[425973411,1782061886000,-200.0,0.00027734,2]
[425973406,1782061886000,-500.0,0.00027671,2]
[425973413,1782061886000,-200.0,0.00027734,2]
[425973415,1782061886000,-200.0,0.00027734,2]
[425973423,1782061886000,-200.0,0.00027734,2]
[425973419,1782061886000,-200.0,0.00027734,2]
[425973417,1782061886000,-200.0,0.00027734,2]
[425973420,1782061886000,-200.0,0.00027734,2]
[425973421,1782061886000,-200.0,0.00027734,2]
[425973407,1782061886000,-500.0,0.00027671,2]
[425973422,1782061886000,-200.0,0.00027734,2]
[425973424,1782061886000,-200.0,0.00027734,2]
[425973425,1782061886000,-200.0,0.00027734,2]
[425973426,1782061886000,-200.0,0.00027734,2]
[425973428,1782061886000,-200.0,0.00027734,2]
[425973437,1782061886000,-200.0,0.00027734,2]
[425973430,1782061886000,-200.0,0.00027734,2]
[425973436,1782061886000,-200.0,0.00027734,2]
[425973418,1782061886000,-200.0,0.00027734,2]
[425973404,1782061886000,-500.0,0.00027671,2]
[425973395,1782061886000,-781.73,0.00027671,2]
[425973402,1782061886000,-500.0,0.00027671,2]
[425973429,1782061886000,-200.0,0.00027734,2]
[425973376,1782061886000,-546.99,0.00027671,2]
[425973377,1782061886000,-500.0,0.00027671,2]
[425973378,1782061886000,-500.0,0.00027671,2]
[425973380,1782061886000,-500.0,0.00027671,2]
[425973383,1782061886000,-500.0,0.00027671,2]
[425973384,1782061886000,-3268.54,0.00027671,2]
[425973379,1782061886000,-2744.45,0.00027671,2]
[425973382,1782061886000,-500.0,0.00027671,2]
[425973389,1782061886000,-500.0,0.00027671,2]
[425973381,1782061886000,-500.0,0.00027671,2]
[425973387,1782061886000,-500.0,0.00027671,2]
[425973385,1782061886000,-500.0,0.00027671,2]
[425973390,1782061886000,-543.15,0.00027671,2]
[425973388,1782061886000,-500.0,0.00027671,2]
[425973392,1782061886000,-700.0,0.00027671,2]
[425973400,1782061886000,-500.0,0.00027671,2]
[425973391,1782061886000,-500.0,0.00027671,2]
[425973401,1782061886000,-500.0,0.00027671,2]
[425973394,1782061886000,-1025.57,0.00027671,2]
[425973393,1782061886000,-6629.64,0.00027671,2]
[425973396,1782061886000,-4853.13,0.00027671,2]
[425973398,1782061886000,-225.28468397,0.00027671,2]
[425973397,1782061886000,-500.0,0.00027671,2]
[425973399,1782061886000,-500.0,0.00027671,2]
[425973403,1782061886000,-500.0,0.00027671,2]
[425973386,1782061886000,-500.0,0.00027671,2]
[425973431,1782061886000,-200.0,0.00027734,2]
[425973432,1782061886000,-200.0,0.00027734,2]
[425973462,1782061886000,-43950.135166,0.00027945,2]
[425973460,1782061886000,-200.0,0.000279,10]
[425973466,1782061886000,-500.0,0.00027945,2]
[425973468,1782061886000,-500.0,0.00027945,2]
[425973470,1782061886000,-500.0,0.00027945,2]
[425973469,1782061886000,-500.0,0.00027945,2]
[425973471,1782061886000,-500.0,0.00027945,2]
[425973473,1782061886000,-500.0,0.00027945,2]
[425973472,1782061886000,-500.0,0.00027945,2]
[425973474,1782061886000,-536.52710487,0.00027945,2]
[425973475,1782061886000,-500.0,0.00027945,2]
[425973477,1782061886000,-500.0,0.00027945,2]
[425973467,1782061886000,-500.0,0.00027945,2]
[425973476,1782061886000,-500.0,0.00027945,2]
[425973480,1782061886000,-500.0,0.00027945,2]
[425973482,1782061886000,-500.0,0.00027945,2]
[425973481,1782061886000,-500.0,0.00027945,2]
[425973483,1782061886000,-500.0,0.00027945,2]
[425973488,1782061886000,-500.0,0.00027945,2]
[425973485,1782061886000,-500.0,0.00027945,2]
[425973486,1782061886000,-431.1846051,0.00027945,2]
[425973484,1782061886000,-500.0,0.00027945,2]
[425973487,1782061886000,-500.0,0.00027945,2]
[425973489,1782061886000,-500.0,0.00027945,2]
[425973490,1782061886000,-576.16,0.00027945,2]
[425973434,1782061886000,-200.0,0.00027734,2]
[425973479,1782061886000,-500.0,0.00027945,2]
[425973463,1782061886000,-156.942244,0.00027945,2]
[425973478,1782061886000,-500.0,0.00027945,2]
[425973461,1782061886000,-67052.5873287,0.0002794,2]
[425973464,1782061886000,-500.0,0.00027945,2]
[425973435,1782061886000,-200.0,0.00027734,2]
[425973427,1782061886000,-200.0,0.00027734,2]
[425973438,1782061886000,-200.0,0.00027734,2]
[425973446,1782061886000,-200.0,0.00027734,2]
[425973447,1782061886000,-181.0,0.00027734,2]
[425973442,1782061886000,-200.0,0.00027734,2]
[425973441,1782061886000,-200.0,0.00027734,2]
[425973440,1782061886000,-200.0,0.00027734,2]
[425973443,1782061886000,-200.0,0.00027734,2]
[425973439,1782061886000,-200.0,0.00027734,2]
[425973444,1782061886000,-200.0,0.00027734,2]
[425973445,1782061886000,-200.0,0.00027734,2]
[425973433,1782061886000,-200.0,0.00027734,2]
[425973449,1782061886000,-500.0,0.00027745,60]
[425973448,1782061886000,-1334.73,0.00027734,2]
[425973456,1782061886000,-3206.23114603,0.00027845,2]
[425973457,1782061886000,-185.19,0.00027848,2]
[425973459,1782061886000,-2328.59,0.000279,7]
[425973458,1782061886000,-573.66,0.00027883,2]
[425973452,1782061886000,-209.59618,0.00027797,2]
[425973465,1782061886000,-500.0,0.00027945,2]
[425973453,1782061886000,-16810.0339719,0.00027828,2]
[425973454,1782061886000,-196.75171301,0.00027845,2]
[425973455,1782061886000,-179.38920481,0.00027845,2]
[425973450,1782061886000,-527.71,0.00027753,2]
[425973451,1782061886000,-853.211481,0.00027791,2]
[425973539,1782061887000,-544.0540002,0.00027945,2]
[425973535,1782061887000,-500.0,0.00027945,2]
[425973531,1782061887000,-500.0,0.00027945,2]
[425973519,1782061887000,-500.0,0.00027945,2]
[425973528,1782061887000,-500.0,0.00027945,2]
[425973523,1782061887000,-1000.0,0.00027945,7]
[425973524,1782061887000,-500.0,0.00027945,2]
[425973522,1782061887000,-500.0,0.00027945,2]
[425973520,1782061887000,-500.0,0.00027945,2]
[425973521,1782061887000,-500.0,0.00027945,2]
[425973533,1782061887000,-500.0,0.00027945,2]
[425973525,1782061887000,-500.0,0.00027945,2]
[425973532,1782061887000,-536.66,0.00027945,2]
[425973534,1782061887000,-647.05102265,0.00027945,2]
[425973536,1782061887000,-500.0,0.00027945,2]
[425973530,1782061887000,-500.0,0.00027945,2]
[425973529,1782061887000,-500.0,0.00027945,2]
[425973537,1782061887000,-631.9,0.00027945,2]
[425973541,1782061887000,-500.0,0.00027945,2]
[425973542,1782061887000,-500.0,0.00027945,2]
[425973543,1782061887000,-500.0,0.00027945,2]
[425973540,1782061887000,-508.36,0.00027945,2]
[425973549,1782061887000,-500.0,0.00027945,2]
[425973551,1782061887000,-500.0,0.00027945,2]
[425973550,1782061887000,-645.4,0.00027945,2]
[425973527,1782061887000,-500.0,0.00027945,2]
[425973538,1782061887000,-500.0,0.00027945,2]
[425973526,1782061887000,-500.0,0.00027945,2]
[425973494,1782061887000,-500.0,0.00027945,2]
[425973518,1782061887000,-500.0,0.00027945,2]
[425973493,1782061887000,-500.0,0.00027945,2]
[425973545,1782061887000,-500.0,0.00027945,2]
[425973492,1782061887000,-500.0,0.00027945,2]
[425973491,1782061887000,-500.0,0.00027945,2]
[425973496,1782061887000,-500.0,0.00027945,2]
[425973495,1782061887000,-500.0,0.00027945,2]
[425973504,1782061887000,-510.08950053,0.00027945,2]
[425973497,1782061887000,-500.0,0.00027945,2]
[425973499,1782061887000,-500.0,0.00027945,2]
[425973498,1782061887000,-500.0,0.00027945,2]
[425973501,1782061887000,-500.0,0.00027945,2]
[425973500,1782061887000,-500.0,0.00027945,2]
[425973517,1782061887000,-500.0,0.00027945,2]
[425973502,1782061887000,-354.65671518,0.00027945,2]
[425973505,1782061887000,-500.0,0.00027945,2]
[425973507,1782061887000,-500.0,0.00027945,2]
[425973506,1782061887000,-500.0,0.00027945,2]
[425973514,1782061887000,-500.0,0.00027945,2]
[425973512,1782061887000,-579.02,0.00027945,2]
[425973511,1782061887000,-500.0,0.00027945,2]
[425973508,1782061887000,-500.0,0.00027945,2]
[425973516,1782061887000,-500.0,0.00027945,2]
[425973509,1782061887000,-165.47200439,0.00027945,2]
[425973510,1782061887000,-500.0,0.00027945,2]
[425973515,1782061887000,-2687.78,0.00027945,2]
[425973513,1782061887000,-500.0,0.00027945,2]
[425973503,1782061887000,-500.0,0.00027945,2]
[425973547,1782061887000,-1266.12,0.00027945,2]
[425973604,1782061887000,-527.94,0.00027945,2]
[425973546,1782061887000,-1880.63,0.00027945,2]
[425973582,1782061887000,-500.0,0.00027945,2]
[425973584,1782061887000,-500.0,0.00027945,2]
[425973583,1782061887000,-553.48,0.00027945,2]
[425973588,1782061887000,-1267.5,0.00027945,2]
[425973585,1782061887000,-500.0,0.00027945,2]
[425973586,1782061887000,-500.0,0.00027945,2]
[425973589,1782061887000,-500.0,0.00027945,2]